bitfinex/quotes_ETHUSD_20250711
["timestamp","ask_amount","ask_price","bid_price","bid_amount"]
[1752240416879,3.33820522,2995.7,2995.4,0.1664]
[1752240417079,0.9442,2996.0,2995.0,0.7622]
[1752240417080,8.59228937,2995.6,2995.0,0.7622]
[1752240417403,5.254,2995.6,2995.2,0.1664]
[1752240417614,5.253,2995.7,2995.5,3.50473339]
[1752240417765,0.8073,2997.3,2995.6,1.20135563]
[1752240418106,3.33728918,2996.5,2996.2,0.1664]
[1752240418289,8.59036338,2996.4,2996.2,0.1664]
[1752240418494,3.33748639,2996.3,2996.0,0.1664]
[1752240418665,5.253,2996.2,2996.0,0.1664]
[1752240419000,5.253,2996.2,2995.6,4.15567636]
[1752240419194,5.253,2996.2,2996.1,0.1664]
[1752240419909,11.34531375,2997.4,2996.2,0.795]
[1752240420209,0.1664,2996.9,2996.4,0.1664]
[1752240420361,5.253,2996.8,2996.4,0.1664]
[1752240420965,5.253,2996.8,2996.4,0.46659794]
[1752240421167,5.253,2996.8,2996.7,0.1664]
[1752240422759,3.33755119,2996.3,2995.9,0.7556]
[1752240422965,8.5900018,2996.8,2996.1,0.1664]
[1752240422966,5.252,2996.2,2996.1,0.1664]
[1752240423192,5.252,2996.2,2995.6,0.7556]
[1752240423464,5.252,2996.2,2995.9,0.1664]
[1752240423465,3.33778371,2996.0,2995.9,0.1664]
[1752240423683,8.58964413,2996.2,2994.7,0.7556]
[1752240423896,0.1664,2996.0,2995.5,0.1664]
[1752240424103,0.818,2996.7,2995.8,0.1664]
[1752240424104,5.252,2995.9,2995.8,0.1664]
[1752240424274,5.252,2996.0,2995.8,0.1664]
[1752240430885,0.1664,2996.6,2995.9,0.7718]
[1752240431219,5.252,2996.7,2996.5,0.1664]
[1752240432036,0.1664,2997.0,2996.5,0.1664]
[1752240432188,5.251,2996.9,2996.7,0.1664]
[1752240432527,5.251,2997.1,2996.7,0.1664]
[1752240432987,5.251,2997.1,2996.7,0.03337004]
[1752240433189,5.251,2997.1,2997.0,0.1664]
[1752240433502,5.251,2997.1,2996.8,0.1664]
[1752240434615,3.33674113,2997.0,2996.8,0.1664]
[1752240435417,8.58758784,2997.1,2996.8,0.1664]
[1752240435652,5.251,2997.1,2996.8,0.1664]
[1752240435962,8.58758643,2997.1,2996.8,0.1664]
[1752240436256,5.251,2997.1,2996.8,0.1664]
[1752240438134,8.58755902,2997.1,2996.8,0.1664]
[1752240438455,5.251,2997.1,2996.8,0.1664]
[1752240440543,3.33672303,2997.0,2996.8,0.1664]
[1752240440737,8.58761666,2997.1,2996.8,0.1664]
[1752240440944,5.251,2997.1,2996.8,0.1664]
[1752240441641,8.58756381,2997.1,2996.8,0.1664]
[1752240441947,5.251,2997.1,2996.8,0.1664]
[1752240442155,8.58959976,2997.1,2996.8,0.1664]
[1752240442519,3.33668583,2997.0,2996.8,0.1664]
[1752240442854,8.58961792,2997.1,2996.8,0.1664]
[1752240443053,5.253,2997.1,2996.8,0.1664]
[1752240443441,8.58965095,2997.1,2996.8,0.1664]
[1752240443647,4.13208134,2996.9,2994.8,1.91586616]
[1752240443858,5.253,2997.1,2995.1,0.8068]
[1752240443859,3.50373813,2996.4,2995.1,0.8068]
[1752240444154,3.50373813,2996.4,2995.4,0.1664]
[1752240444155,0.7953,2995.8,2995.4,0.1664]
[1752240444358,0.7953,2995.8,2994.7,0.8068]
[1752240444359,3.33875765,2995.2,2994.7,0.8068]
[1752240444559,10.498,2995.1,2995.0,0.1674]
[1752240444763,10.498,2995.3,2995.0,0.001]
[1752240445123,10.498,2995.3,2995.2,0.1664]
[1752240445347,10.498,2995.3,2995.2,0.9246]
[1752240445537,10.498,2996.3,2995.3,0.7582]
[1752240445742,10.498,2996.3,2996.1,0.1664]
[1752240446149,0.7618,2997.2,2996.2,4.09575239]
[1752240446352,5.249,2997.0,2996.7,0.1664]
[1752240447755,8.58572627,2997.0,2996.7,0.1664]
[1752240447939,5.249,2997.0,2996.7,0.1664]
[1752240448357,5.249,2997.0,2996.2,0.7582]
[1752240448660,8.58576112,2997.0,2996.8,0.1664]
[1752240448859,3.33678134,2996.9,2996.8,0.1664]
[1752240449161,8.58567192,2997.0,2996.2,0.7582]
[1752240449162,5.249,2997.0,2996.5,0.1664]
[1752240449326,3.33680151,2996.9,2996.5,0.1664]
[1752240449525,5.249,2997.0,2996.5,0.1664]
[1752240449526,3.33698521,2996.8,2996.5,0.1664]
[1752240449745,5.249,2996.7,2996.5,0.1664]
[1752240454367,5.248,2996.7,2996.5,0.1664]
[1752240454576,5.248,2996.9,2996.6,0.35037191]
[1752240454863,5.248,2996.9,2996.5,0.1664]
[1752240455067,8.58485358,2996.9,2996.5,0.1664]
[1752240455363,3.33689268,2996.8,2996.5,0.1664]
[1752240455664,5.248,2996.9,2996.5,0.1664]
[1752240455970,8.58479497,2996.9,2996.5,0.1664]
[1752240456172,3.33695795,2996.8,2996.5,0.1664]
[1752240456866,8.58482962,2996.9,2996.5,0.1664]
[1752240457368,8.58479228,2996.9,2996.2,1.2037]
[1752240457674,3.33698987,2996.8,2996.4,0.1664]
[1752240459087,9.19538515,2996.9,2996.4,0.1664]
[1752240459634,3.33694553,2996.8,2996.4,0.1664]
[1752240460313,5.8586,2996.9,2996.4,0.1664]
[1752240460314,5.4144,2996.9,2996.4,0.1664]
[1752240460447,5.248,2996.9,2996.8,0.1664]
[1752240461052,5.248,2996.9,2996.8,1.4368]
[1752240461453,5.248,2996.9,2996.8,1.91417359]
[1752240461867,5.248,2996.9,2996.8,1.4368]
[1752240462637,5.248,2996.9,2996.8,0.9913]
[1752240463742,5.248,2996.9,2996.8,0.1664]
[1752240464161,3.33689281,2996.8,2996.6,0.1664]
[1752240464366,3.78109281,2996.8,2996.4,0.1664]
[1752240464569,0.4442,2996.8,2996.4,0.1664]
[1752240465138,6.2284,2996.9,2996.4,0.1664]
[1752240465139,10.494,2997.0,2996.7,0.1664]
[1752240465344,10.494,2997.0,2996.8,1.2506]
[1752240465582,10.494,2997.0,2996.9,0.6119]
[1752240465979,10.494,2997.0,2996.9,0.1664]
[1752240466354,10.494,2997.0,2996.9,0.6119]
[1752240466549,10.494,2997.0,2996.9,1.08728376]
[1752240466942,10.494,2997.0,2996.9,0.6119]
[1752240467881,0.002,2997.1,2997.0,3.33667]
[1752240468097,0.002,2997.1,2997.0,3.8155367]
[1752240468547,0.002,2997.1,2997.0,3.78217]
[1752240471753,0.4462,2997.1,2996.9,0.1664]
[1752240472059,0.4442,2997.0,2996.9,0.1664]
[1752240472260,5.6892,2997.0,2996.9,0.1664]
[1752240472657,5.6892,2997.0,2996.7,0.1664]
[1752240472980,0.4442,2996.9,2996.7,0.1664]
[1752240473350,5.245,2997.0,2996.7,0.1664]
[1752240474974,5.6892,2997.0,2996.7,0.1664]
[1752240475170,5.245,2997.0,2996.1,0.7886]
[1752240475376,0.6106,2996.9,2996.3,0.1664]
[1752240475565,3.78110901,2996.8,2996.3,0.1664]
[1752240475759,13.82701952,2996.7,2996.3,0.1664]
[1752240475964,3.78133046,2996.6,2996.3,0.1664]
[1752240476177,14.63082719,2996.7,2996.3,0.1664]
[1752240476682,3.78134645,2996.6,2996.3,0.1664]
[1752240476883,0.4442,2996.6,2996.3,0.1664]
[1752240477179,3.33742561,2996.4,2996.0,0.1664]
[1752240477479,10.489,2996.3,2996.1,0.4455]
[1752240477680,10.6554,2996.3,2996.1,0.4455]
[1752240477884,10.489,2996.3,2995.7,3.78359612]
[1752240478083,10.489,2996.3,2996.0,0.1664]
[1752240478287,10.489,2996.3,2996.1,0.4455]
[1752240478451,10.489,2996.5,2996.3,3.33739101]
[1752240478784,10.489,2996.6,2996.4,0.7792391]
[1752240479099,10.489,2996.8,2996.5,0.6119]
[1752240479257,10.489,2996.8,2996.7,0.1664]
[1752240479453,10.489,2996.8,2996.7,0.6119]
[1752240479687,10.489,2996.8,2996.7,0.1664]
[1752240480190,0.002,2997.1,2996.7,0.1664]
[1752240480484,0.002,2997.1,2996.8,1.27546892]
[1752240480689,0.002,2997.1,2996.8,4.61228516]
[1752240480886,0.002,2997.1,2996.8,4.13341624]
[1752240481087,0.002,2997.1,2996.9,0.4455]
[1752240481386,0.002,2997.1,2996.9,3.78221299]
[1752240481583,0.002,2997.1,2997.0,0.9033813]
[1752240481888,0.4442,2997.0,2996.8,0.7966]
[1752240482087,0.002,2997.1,2996.8,0.7966]
[1752240482284,0.002,2997.1,2997.0,3.33667]
[1752240482487,0.002,2997.1,2997.0,3.3700367]
[1752240482692,0.002,2997.1,2997.0,4.57706126]
[1752240483321,0.002,2997.1,2997.0,1.24039126]
[1752240483798,0.002,2997.1,2997.0,0.79489126]
[1752240484095,0.002,2997.1,2997.0,0.4455]
[1752240484312,0.002,2997.1,2997.0,3.78217]
[1752240486099,0.002,2997.1,2996.8,4.13446314]
[1752240486297,0.002,2997.1,2997.0,3.33667]
[1752240486624,0.002,2997.1,2997.0,3.76987]
[1752240486801,0.002,2997.1,2997.0,4.56363127]
[1752240487096,0.002,2997.1,2997.0,4.55941503]
[1752240487701,0.002,2997.1,2997.0,1.22274503]
[1752240488567,0.002,2997.1,2997.0,0.79376127]
[1752240488882,0.002,2997.1,2997.0,4.13043127]
[1752240489201,0.002,2997.1,2997.0,3.76987]
[1752240489983,0.002,2997.1,2997.0,3.8032367]
[1752240490372,0.002,2998.1,2997.8,3.33577422]
[1752240490572,0.002,2998.1,2997.6,3.3359794]
[1752240490573,0.002,2998.1,2997.6,3.33594084]
[1752240490778,0.002,2998.1,2997.9,0.1664]
[1752240491306,0.002,2998.1,2997.8,3.33568108]
[1752240491507,0.002,2998.1,2998.0,0.1664]
[1752240492298,0.002,2998.1,2998.0,0.5996]
[1752240492502,0.002,2998.1,2998.0,0.1664]
[1752240492685,0.4595,2998.1,2997.3,3.33626565]
[1752240492895,3.33555703,2998.0,2997.3,0.56752]
[1752240493100,14.59583902,2997.9,2997.5,0.1664]
[1752240493289,3.33589403,2997.7,2997.5,0.1664]
[1752240493485,3.79332954,2997.8,2997.5,0.1664]
[1752240493691,3.33612193,2997.5,2996.9,0.8301]
[1752240494003,0.4575,2997.4,2997.1,0.1664]
[1752240494197,0.1664,2997.6,2997.1,0.1664]
[1752240494385,0.4575,2997.5,2997.1,0.1664]
[1752240494589,3.33612495,2997.5,2997.1,0.1664]
[1752240494785,3.79373195,2997.4,2997.1,0.1664]
[1752240494988,1.2229,2997.3,2997.1,0.1664]
[1752240495418,0.4575,2997.2,2997.1,0.1664]
[1752240495719,0.4575,2997.2,2996.8,0.1674]
[1752240495720,3.33655867,2997.1,2996.8,0.1674]
[1752240496022,13.81867,2997.0,2996.9,0.3]
[1752240496188,14.27617,2997.0,2996.9,0.3]
[1752240496385,10.482,2997.0,2996.9,0.3]
[1752240496587,10.482,2997.0,2996.8,0.001]
[1752240496588,15.06987,2997.0,2996.8,0.001]
[1752240496786,0.7585,2996.4,2995.3,0.001]
[1752240497014,0.1664,2996.1,2995.6,0.1664]
[1752240497222,3.33793919,2995.9,2995.6,0.1664]
[1752240497446,10.9395,2995.8,2995.6,0.1664]
[1752240497625,10.482,2995.8,2995.6,0.1664]
[1752240497823,10.482,2995.8,2995.3,0.001]
[1752240498029,10.482,2995.8,2995.7,0.1664]
[1752240498400,10.482,2995.8,2995.7,0.5996]
[1752240498833,10.482,2995.8,2995.7,0.1664]
[1752240499434,10.481,2996.1,2995.7,0.1664]
[1752240499819,10.481,2996.1,2995.9,0.1664]
[1752240500008,10.481,2996.1,2996.0,0.4332]
[1752240500402,14.27623545,2996.1,2995.9,0.1664]
[1752240500604,0.4575,2996.0,2995.3,0.001]
[1752240500836,3.33803565,2995.8,2995.4,0.1664]
[1752240501040,13.82013806,2995.7,2995.4,0.1664]
[1752240501222,14.27763806,2995.7,2995.4,0.1664]
[1752240501422,0.4575,2995.6,2995.4,0.1664]
[1752240501618,0.8009,2995.6,2995.4,0.16499459]
[1752240501827,0.4575,2995.5,2995.4,0.16499459]
[1752240502130,4.13916266,2995.6,2995.4,0.16499459]
[1752240502442,0.8009,2995.6,2995.3,0.001]
[1752240502653,1.2584,2995.6,2995.3,0.001]
[1752240503350,0.8009,2995.6,2995.3,0.001]
[1752240503533,0.4575,2995.5,2995.3,0.001]
[1752240503706,13.82145229,2995.4,2995.3,0.001]
[1752240503911,14.27895229,2995.4,2995.3,0.001]
[1752240504429,13.82145229,2995.4,2995.3,0.001]
[1752240504644,14.27895229,2995.4,2995.3,0.001]
[1752240506413,10.9405,2995.4,2995.3,0.001]
[1752240506748,10.483,2995.4,2995.3,0.001]
[1752240507430,10.483,2995.4,2995.3,0.4342]
[1752240507753,8.005,2996.4,2995.3,0.4342]
[1752240507754,10.485,2995.6,2995.3,0.1674]
[1752240510847,10.485,2995.6,2995.3,0.6006]
[1752240511051,10.485,2995.6,2995.3,0.1674]
[1752240511620,3.33845229,2995.4,2995.3,0.001]
[1752240511859,13.82345229,2995.4,2995.3,0.001]
[1752240512042,10.485,2995.4,2995.3,0.001]
[1752240512535,10.485,2995.4,2995.3,0.1674]
[1752240512915,13.82345229,2995.4,2995.3,0.001]
[1752240513150,10.9425,2995.4,2995.3,0.001]
[1752240513347,10.485,2995.4,2995.3,0.001]
[1752240514853,13.82345229,2995.4,2995.3,0.001]
[1752240515014,14.28095229,2995.4,2995.3,0.001]
[1752240515560,15.05115229,2995.4,2995.3,0.001]
[1752240515762,15.21755229,2995.4,2995.3,0.001]
[1752240517060,11.4216,2995.4,2995.3,0.001]
[1752240517258,11.2552,2995.4,2995.3,0.001]
[1752240517458,10.485,2995.4,2995.3,0.001]
[1752240519143,13.82345229,2995.4,2995.3,0.001]
[1752240519555,14.43905229,2995.4,2995.3,0.001]
[1752240520333,10.485,2995.4,2995.3,0.001]
[1752240520558,13.82345229,2995.4,2995.3,0.001]
[1752240522259,14.27265229,2995.4,2995.3,0.001]
[1752240522859,15.04705229,2995.4,2995.3,0.001]
[1752240523655,4.56205229,2995.4,2995.3,0.001]
[1752240523836,11.2594,2995.4,2995.3,0.4716]
[1752240524035,14.59785229,2995.4,2995.3,0.001]
[1752240524431,15.04705229,2995.4,2995.3,0.001]
[1752240524967,11.2594,2995.4,2995.3,0.001]
[1752240525348,5.242,2995.4,2995.3,0.4716]
[1752240525552,5.242,2995.4,2995.3,0.001]
[1752240528742,5.242,2995.4,2995.3,0.4716]
[1752240528952,5.242,2995.4,2995.3,0.638]
[1752240529268,5.242,2995.4,2995.3,1.03566828]
[1752240529269,5.2386606,2995.4,2995.3,1.03566828]
[1752240529464,4.30842779,2996.1,2995.3,0.638]
[1752240529666,0.9707,2996.1,2995.6,0.1664]
[1752240529966,5.242,2996.0,2995.6,0.1664]
[1752240530269,8.57981433,2996.0,2995.6,0.1664]
[1752240531371,0.4492,2995.9,2995.6,0.1664]
[1752240531547,3.33845229,2995.4,2995.3,0.001]
[1752240531749,8.58045229,2995.4,2995.3,0.001]
[1752240531971,9.02965229,2995.4,2995.3,0.001]
[1752240533174,8.58045229,2995.4,2995.3,0.001]
[1752240533335,5.242,2995.4,2995.3,0.001]
[1752240533803,5.242,2995.4,2995.3,0.4716]
[1752240534152,5.242,2995.4,2995.3,0.001]
[1752240540555,8.58045229,2995.4,2995.3,0.001]
[1752240541347,9.79975229,2995.4,2995.3,0.001]
[1752240543960,9.81675229,2995.4,2995.3,0.001]
[1752240546650,17.74675229,2995.4,2995.3,0.001]
[1752240547084,17.29755229,2995.4,2995.3,0.001]
[1752240547284,16.52745229,2995.4,2995.3,0.001]
[1752240547486,5.259,2995.4,2995.3,0.001]
[1752240547787,8.59745229,2995.4,2995.3,0.001]
[1752240548983,5.259,2995.4,2995.3,0.4721]
[1752240549471,5.4254,2995.4,2995.3,0.4721]
[1752240549792,8.76385229,2995.4,2995.3,0.001]
[1752240550163,5.4254,2995.4,2995.3,0.001]
[1752240550559,8.76385229,2995.4,2995.3,0.001]
[1752240551588,5.4254,2995.4,2995.3,0.001]
[1752240551996,5.4254,2995.4,2995.3,0.4721]
[1752240552577,5.4264,2995.4,2995.3,0.4721]
[1752240552775,8.76485229,2995.4,2995.3,0.4721]
[1752240553016,9.52225229,2995.4,2995.3,0.001]
[1752240554165,8.76485229,2995.4,2995.3,0.4721]
[1752240554369,5.4264,2995.4,2995.3,0.4721]
[1752240554815,8.76485229,2995.4,2995.3,0.4721]
[1752240555016,5.4264,2995.4,2995.3,0.001]
[1752240555168,5.4264,2995.4,2995.3,1.2633]
[1752240555523,5.26,2995.4,2995.3,1.2633]
[1752240557504,5.26,2995.4,2995.3,1.74014309]
[1752240559194,5.26,2995.4,2995.3,1.2633]
[1752240559527,0.001,2995.4,2995.3,1.2633]
[1752240559814,0.001,2995.4,2995.3,0.7922]
[1752240559986,9.01525229,2995.4,2995.3,0.001]
[1752240560690,9.80205229,2995.4,2995.3,0.001]
[1752240564241,9.36825229,2995.4,2995.3,0.001]
[1752240564443,17.73205229,2995.4,2995.3,0.001]
[1752240564814,16.52945229,2995.4,2995.3,0.001]
[1752240565012,16.69585229,2995.4,2995.3,0.4721]
[1752240565405,8.0974,2995.4,2995.3,0.4721]
[1752240565709,16.53145229,2995.4,2995.3,0.001]
[1752240566537,13.193,2995.4,2995.3,0.4721]
[1752240567445,5.263,2995.4,2995.3,0.4721]
[1752240568126,8.60145229,2995.4,2995.3,0.001]
[1752240568330,5.263,2995.4,2995.3,0.4721]
[1752240570021,0.001,2995.4,2995.3,1.2797]
[1752240571064,3.33945229,2995.4,2995.3,0.8086]
[1752240571355,3.33945229,2995.4,2995.3,0.001]
[1752240571560,0.001,2995.4,2995.3,0.001]
[1752240571852,0.001,2995.4,2995.3,0.4721]
[1752240572060,3.33945229,2995.4,2995.3,0.001]
[1752240573351,0.001,2995.4,2995.3,0.001]
[1752240573516,0.001,2995.4,2995.3,0.4721]
[1752240575054,5.274,2995.4,2995.3,0.001]
[1752240575352,5.274,2995.4,2995.3,0.4435]
[1752240575716,5.274,2995.4,2995.3,0.6099]
[1752240576019,5.274,2995.4,2995.3,0.1674]
[1752240576214,5.274,2995.4,2995.3,0.4435]
[1752240576436,8.61245229,2995.4,2995.3,0.001]
[1752240576641,5.274,2995.4,2995.3,0.001]
[1752240576854,5.274,2995.4,2995.3,0.4435]
[1752240577754,0.001,2995.4,2995.3,0.6099]
[1752240580584,0.1674,2996.6,2995.9,3.33779094]
[1752240580725,5.4534,2996.6,2996.2,0.8054]
[1752240580930,5.4534,2996.6,2996.3,0.4425]
[1752240581127,0.001,2996.6,2996.5,3.33722676]
[1752240581324,0.001,2996.6,2996.5,4.32743689]
[1752240582352,0.001,2996.6,2996.5,5.11530915]
[1752240582528,0.001,2996.6,2996.5,17.31339742]
[1752240582730,0.001,2996.6,2996.5,17.28002516]
[1752240585450,0.002,2996.8,2996.7,3.33700403]
[1752240585647,0.002,2996.8,2996.7,2.79184146]
[1752240585953,0.4396,2996.8,2996.1,0.7589]
[1752240586140,0.002,2996.8,2996.2,0.1997756]
[1752240586344,0.002,2996.8,2996.3,0.4425]
[1752240586651,0.002,2996.8,2996.3,0.91637644]
[1752240586970,0.002,2996.8,2996.2,0.1997756]
[1752240586971,3.33700403,2996.7,2996.2,0.1664]
[1752240587173,0.1664,2996.7,2996.3,0.4425]
[1752240587639,0.1664,2996.7,2996.4,0.4425]
[1752240589761,0.002,2996.8,2995.8,0.8032]
[1752240589975,3.33757293,2996.2,2995.8,0.8032]
[1752240590153,0.4376,2996.1,2995.5,0.8273]
[1752240590535,0.4376,2996.1,2995.3,3.33955476]
[1752240590536,3.33798824,2995.9,2995.3,0.001]
[1752240590738,0.7653,2995.7,2995.3,0.001]
[1752240590978,11.3737,2996.0,2995.3,0.001]
[1752240591249,11.3737,2996.0,2995.4,0.82071055]
[1752240591474,11.3737,2996.0,2995.4,0.4425]
[1752240592174,10.576,2996.0,2995.5,0.7513]
[1752240592379,10.576,2996.0,2995.7,3.3381145]
[1752240592765,10.576,2996.0,2995.8,0.4425]
[1752240592963,10.576,2996.0,2995.5,0.7513]
[1752240592964,10.576,2996.0,2995.5,1.1938]
[1752240593268,10.576,2996.0,2995.8,3.78044924]
[1752240593466,10.576,2996.0,2995.9,3.71594004]
[1752240593680,10.576,2996.0,2995.9,4.15844004]
[1752240594239,0.8082,2996.7,2996.1,3.33761746]
[1752240594446,0.002,2996.8,2996.2,0.0333756]
[1752240594753,5.299,2996.7,2996.3,0.4425]
[1752240594945,5.299,2996.7,2996.3,0.90260685]
[1752240595350,5.299,2996.7,2996.3,0.46010685]
[1752240595697,5.299,2996.7,2996.4,0.4425]
[1752240596047,5.299,2996.7,2996.5,0.4425]
[1752240597559,5.299,2996.7,2996.4,0.001]
[1752240597876,5.301,2996.7,2996.5,0.4425]
[1752240598098,5.301,2996.7,2996.5,0.82059031]
[1752240598375,5.301,2996.7,2996.4,0.001]
[1752240599491,8.63800987,2996.7,2996.4,0.001]
[1752240599799,3.94119011,2996.6,2996.4,0.001]
[1752240600097,3.33722676,2996.5,2996.4,0.001]
[1752240600263,0.1664,2996.6,2996.4,0.001]
[1752240600683,4.54202676,2996.5,2996.4,0.001]
[1752240601696,4.54202676,2996.5,2996.4,1e-08]
[1752240602069,4.10442676,2996.5,2996.4,1e-08]
[1752240602268,4.54202676,2996.5,2996.4,1e-08]
[1752240603393,4.10442676,2996.5,2996.4,1e-08]
[1752240603596,4.54202676,2996.5,2996.4,1e-08]
[1752240603766,13.96522676,2996.5,2996.4,1e-08]
[1752240604168,10.628,2996.5,2996.4,1e-08]
[1752240605262,14.76692676,2996.5,2996.4,1e-08]
[1752240606002,10.628,2996.5,2996.4,1e-08]
[1752240606586,10.628,2996.5,2996.4,0.46870001]
[1752240606785,10.652,2996.7,2996.4,0.46870001]
[1752240607066,0.002,2996.7,2996.6,0.787]
[1752240607311,0.002,2996.7,2996.6,1.2557]
[1752240607606,0.002,2996.7,2996.6,4.59281539]
[1752240607810,0.002,2996.7,2996.6,5.38916354]
[1752240610205,0.002,2996.7,2996.6,5.42253469]
[1752240610368,0.002,2997.9,2997.0,3.33667]
[1752240610707,0.002,2997.9,2997.8,0.1664]
[1752240610890,0.002,2997.9,2997.8,3.88576443]
[1752240611061,0.002,2997.9,2997.8,5.12226443]
[1752240611268,0.002,2997.9,2997.8,5.08890664]
[1752240612098,0.002,2997.9,2997.8,1.75312707]
[1752240612285,0.002,2997.9,2997.8,4.73867957]
[1752240612688,0.002,2997.9,2997.8,0.7678]
[1752240612862,0.002,2997.9,2997.8,1.2365]
[1752240613783,0.002,2997.9,2997.8,1.26985779]
[1752240614006,0.002,2997.9,2997.8,1.2365]
[1752240614483,0.002,2997.9,2997.8,5.06288535]
[1752240614814,0.002,2997.9,2997.8,1.69374799]
[1752240614994,0.002,2997.9,2997.8,1.2365]
[1752240615510,0.002,2997.9,2997.5,0.7525]
[1752240616216,0.002,2997.9,2997.6,0.4687]
[1752240616418,0.002,2997.9,2997.7,0.0333589]
[1752240616904,0.002,2997.9,2997.8,0.4687]
[1752240617213,0.002,2997.9,2997.6,0.4687]
[1752240617618,0.002,2997.9,2997.5,0.7525]
[1752240617914,0.002,2997.9,2997.2,5.336]
[1752240617915,0.002,2997.9,2997.2,1.287]
[1752240618085,3.33767655,2997.9,2997.2,1.287]
[1752240618304,3.33589329,2997.7,2997.2,0.8183]
[1752240618499,0.002,2997.9,2996.9,0.8325]
[1752240618731,0.002,2997.9,2997.0,0.91900565]
[1752240618928,3.33772612,2997.9,2997.0,4.25567304]
[1752240619235,0.002,2997.9,2997.2,0.7573]
[1752240619407,0.002,2997.9,2997.8,3.33577957]
[1752240619606,0.002,2997.9,2997.8,3.66935753]
[1752240619803,0.002,2997.9,2997.8,4.13805753]
[1752240620003,0.002,2997.9,2997.8,4.92871532]
[1752240620205,0.002,2998.1,2998.0,3.33555703]
[1752240620403,0.002,2998.3,2998.2,3.33533453]
[1752240620637,0.002,2998.3,2998.2,10.22353116]
[1752240620834,0.002,2998.3,2998.2,10.65887782]
[1752240621700,0.002,2998.3,2998.2,1.51884329]
[1752240621902,0.002,2998.3,2998.0,0.4687]
[1752240622212,0.002,2998.3,2998.1,0.4687]
[1752240622734,0.002,2998.3,2998.2,0.6351]
[1752240622937,0.002,2998.3,2998.2,0.1664]
[1752240623504,0.002,2998.3,2998.2,0.6351]
[1752240624248,0.002,2998.3,2997.2,3.33637976]
[1752240624249,0.002,2998.3,2997.4,0.7754]
[1752240624416,0.4352,2998.2,2997.8,0.1664]
[1752240624742,0.002,2998.3,2997.8,0.1664]
[1752240624905,0.002,2998.3,2997.9,0.4687]
[1752240625331,0.002,2998.3,2998.1,0.1664]
[1752240625683,0.7976,2998.0,2996.5,0.8147]
[1752240625802,4.13402964,2997.3,2996.9,0.1664]
[1752240626204,0.7976,2997.3,2996.9,0.1664]
[1752240626418,4.13397476,2997.3,2996.9,0.1664]
[1752240626614,0.7976,2997.3,2996.9,0.1664]
[1752240626815,0.1664,2997.4,2996.9,0.1664]
[1752240627031,0.1664,2997.4,2997.0,0.4687]
[1752240627252,3.33633603,2997.3,2996.9,0.1664]
[1752240627747,0.1664,2997.4,2996.9,0.1664]
[1752240628218,3.33647711,2997.2,2996.9,0.1664]
[1752240628616,3.33657198,2997.1,2996.9,0.1664]
[1752240628826,3.3364753,2997.2,2996.9,0.1664]
[1752240629206,3.50264747,2997.4,2996.9,0.1664]
[1752240629207,0.1664,2997.4,2996.9,0.1664]
[1752240629455,0.7591,2997.7,2997.0,0.4687]
[1752240629627,0.9255,2997.7,2997.1,0.1664]
[1752240629803,0.9255,2997.7,2997.2,0.4687]
[1752240630010,0.1664,2997.7,2997.3,0.4687]
[1752240630224,0.1664,2997.7,2997.4,0.4687]
[1752240630706,13.99275334,2997.9,2997.4,0.4687]
[1752240630707,10.657,2997.9,2997.4,0.4687]
[1752240630937,0.8148,2998.0,2997.5,0.6351]
[1752240630938,0.1664,2998.0,2997.5,0.6351]
[1752240631108,4.15202754,2998.3,2997.6,0.39713131]
[1752240631308,4.15202754,2998.3,2996.8,3.33685077]
[1752240631309,0.8148,2998.1,2996.8,0.7765]
[1752240631516,0.8148,2998.1,2997.1,3.33655867]
[1752240631717,0.1664,2997.9,2997.4,0.1664]
[1752240631910,0.8148,2998.1,2997.5,0.50206113]
[1752240632132,0.8148,2998.1,2997.6,0.1664]
[1752240632133,0.9812,2998.1,2997.6,0.1664]
[1752240632645,1.4164,2998.1,2997.6,0.1664]
[1752240632851,0.4352,2998.0,2996.8,0.7765]
[1752240633008,0.1664,2997.7,2997.2,0.1664]
[1752240633221,0.1664,2998.0,2997.4,0.1664]
[1752240633627,3.50199169,2998.0,2997.4,0.1664]
[1752240633948,3.33573139,2997.9,2997.4,0.1664]
[1752240634136,3.50204751,2998.0,2997.4,0.1664]
[1752240634344,3.50199614,2998.0,2997.4,0.1664]
[1752240635120,0.1664,2998.0,2997.4,0.1664]
[1752240636075,0.002,2998.3,2997.6,0.8107]
[1752240636255,0.1664,2998.2,2997.7,0.1664]
[1752240636723,3.96486351,2998.2,2997.7,0.1664]
[1752240636922,0.6295,2998.2,2997.7,0.1664]
[1752240637157,0.1664,2998.2,2997.7,0.1664]
[1752240637535,3.96484048,2998.2,2997.7,0.1664]
[1752240637750,0.6295,2998.2,2997.7,0.1664]
[1752240637956,3.33545965,2998.1,2997.7,0.1664]
[1752240638150,3.33609689,2997.6,2996.9,1.2089]
[1752240638364,0.1664,2997.7,2997.1,0.1664]
[1752240638852,3.33635794,2997.3,2997.1,0.1664]
[1752240639160,0.1664,2997.4,2996.9,0.1664]
[1752240639368,0.1664,2997.4,2997.0,0.456]
[1752240639656,0.1664,2997.4,2996.9,0.1664]